{"text_format":"2","workbook":"xlsx","n_sheets":2,"sheets":["Záradék","Anyaglista"],"not_rendered":{"charts":0,"images":0,"macros":0,"external_links":0,"defined_names":2,"comments":0,"pivot_tables":0},"unopened":[],"bounds":{"document_bytes":16777216,"sheet_cells":100000,"run_cost":"one","rows_first":2000,"rows_last":500,"rows_between":2000,"halvings":0,"cell_chars":16384,"cell_head_chars":4096},"cells_cut":0,"cells_raw":0,"read":"whole","date_system":"1900"}

{"sheet":"Záradék","index":0,"n_rows":28,"n_cols":3,"rows_kept":28,"cut":false,"hidden":false,"merged":[[0,0,0,2],[18,0,18,2],[27,1,27,2],[5,0,5,1],[7,0,7,1],[8,0,8,1],[9,0,9,1],[10,0,10,1]]}
["SZEGEDI TUDOMÁNYEGYETEM"]
["Műszaki Igazgatóság                    "]
["Műszaki Üzemeltetési Részleg          "]
["6725 Szeged, Tisza Lajos krt. 107.     "]
[]
["Készítette:"]
[]
["Cégnév"]
["Székhely"]
["Kapcsolattartó"]
["Elérhetőség"]
["                                       ",null,"                                       "]
["A munka leírása:                       ",null,"                                       "]
["munkatárgya"]
["                                                                              "]
["Készült:                                                                      "]
["                                                                              "]
[]
["Költségvetés főösszesítő"]
["Megnevezés",null,"Anyagköltség"]
["1. Anyagköltség",null,{"$f":"Anyaglista!G64","v":0}]
["2.1 ÁFA vetítési alap",null,{"$f":"C21","v":0}]
["2.2 Áfa",0.27,{"$f":"ROUND(C22*B23,0)","v":0}]
["3. Összesen",null,{"$f":"C22+C23","v":0}]
[]
[]
[]
[null,"Aláírás"]

{"sheet":"Anyaglista","index":1,"n_rows":64,"n_cols":7,"rows_kept":64,"cut":false,"hidden":false,"merged":[]}
["Sorszám","SZTE cikkszám","Megnevezés","Mennyiség","Kiszerelés","Egység ár (nettó Ft)","Összesen (nettó Ft)"]
[1,80170112,"WC ülőke (erős)",10,"db",null,{"$f":"D2*F2","v":0}]
[2,80170159,"Dömötör beeresztő szelep",10,"db",null,{"$f":"D3*F3","v":0}]
[3,80240004,"Aga Palástjavító 2\"",2,"db",null,0]
[4,null,"Leeresztő szelep 5/4\"",15,"db",null,0]
[5,null,"Jolly bekötő cső 32mm",15,"db",null,0]
[6,null,"Pissoir szifon",2,"db",null,0]
[7,null,"Dömötör leeresztő szelep",10,"db",null,0]
[8,null,"Styron 703-as beeresztő szelep",5,"db",null,0]
[9,null,"Laguna leeresztő szelep",3,"db",null,0]
[10,null,"Mosógép bekötőcső 3/4\"",2,"db",null,0]
[11,null,"WC Bekötő Gumigyűrű 32mm",10,"db",null,0]
[12,null,"1/2-os Végdugó horganyzott",10,"db",null,0]
[13,null,"Shell bekötőcső",2,"db",null,0]
[14,null,"Shell szelep",2,"db",null,0]
[15,null,"Álló Mosdó Csapt. Mofém Eurosztár ",5,"db",null,0]
[16,null,"Fali mosogató csaptelep Eurosztár",3,"db",null,0]
[17,null,"100x100-as térháló",6,"tábla",null,0]
[18,null,"50x50-es szögvas 6méteres",8,"szál",null,0]
[19,null,"Lemez Lv2mm 1000x2000mm",5,"tábla",null,0]
[20,null,"Önmetsző csavar 4x20mm",200,"db",null,0]
[21,null,"Lombfogó gömb 80-120mm",10,"db",null,0]
[22,null,"WC csésze magas öblítésű alsó kifolyású ",2,"db",null,0]
[23,null,"WC csésze magas öblítésű hátsó kifolyású ",2,"db",null,0]
[24,null,"WC csésze mélyöblítésű alsó kifolyású",2,"db",null,0]
[25,null,"WC csésze mélyöblítésű hátsó kifolyású",2,"db",null,0]
[26,null,"WC csésze mélyöblítésű alsó kifolyású hosszított",2,"db",null,0]
[27,null,"PVC könyök 32mm 45°",5,"db",null,0]
[28,null,"PVC könyök 32mm 90°",5,"db",null,0]
[29,null,"PVC könyök 40mm 45°",5,"db",null,0]
[30,null,"PVC könyök 40mm 90°",5,"db",null,0]
[31,null,"PVC szűkítő 40/32mm",5,"db",null,0]
[32,null,"PVC szűkítő 50/32mm",5,"db",null,0]
[33,null,"PVC áttoló karmantyú 32mm",5,"db",null,0]
[34,null,"PVC áttoló karmantyú 40mm",5,"db",null,0]
[35,null,"1/2\" hollander kb ",10,"db",null,0]
[36,null,"1/2\" hollander bb",10,"db",null,0]
[37,null,"Forrasztó ón 2mm-es",1,"tek",null,0]
[38,null,"Folyató paszta lágyforrasztáshoz",1,"db",null,0]
[39,null,"3/4\" karmantyú fém",10,"db",null,0]
[40,null,"3/4\" végdugó  fém",5,"db",null,0]
[41,null,"3/4\" záró kupak fém",5,"db",null,0]
[42,null,"1/2\" záró kupak fém",5,"db",null,0]
[43,null,"1/2\" BB könyök",10,"db",null,0]
[44,null,"32mm gumi karmantyú ",10,"db",null,0]
[45,null,"Dömötör wc tartály",2,"db",null,0]
[46,null,"WD 40 spray",2,"db",null,0]
[47,null,"C130-as kifolyócső",3,"db",null,0]
[48,null,"Mosógép bűzelzáró szifon",2,"db",null,0]
[49,null,"Tustartó 60cm-es",2,"db",null,0]
[50,null,"Mosdó rögzítő dűbel",6,"db",null,0]
[51,null,"PVC szűkítő 50/40mm",5,"db",null,0]
[52,null,"Radiátorszelep 1/2\" egyenes ",70,"db",null,0]
[53,null,"Radiátorszelep 1/2\" 90°-os",5,"db",null,0]
[54,null,"Radiátorszelep 3/4\" egyenes",5,"db",null,0]
[55,null,"Radiátorszelep 3/4\" 90°-os",10,"db",null,0]
[56,null,"Radiátorszelep 1\" egyenes ",1,"db",null,0]
[57,null,"Radiátorszelep 5/4\" 90°-os",1,"db",null,0]
[58,null,"Torló 1/2\" egyenes",70,"db",null,0]
[59,null,"Torló 1/2\" 90°-os",20,"db",null,0]
[60,null,"Torló 3/4\"egyenes",10,"db",null,0]
[61,null,"Torló 3/4\" 90°-os",10,"db",null,0]
[62,null,"Torló 1\" 90°-os",5,"db",null,0]
[{"$nulls":5},"Összesen:",{"$f":"SUM(G2:G63)","v":0}]